bitfinex-derivatives/quotes_SOLF0:USTF0_20250505
["timestamp","ask_amount","ask_price","bid_price","bid_amount"]
[1746441084009,6.8822,145.3,145.25,24.42]
[1746441084415,6.8817,145.31,145.28,6.8828]
[1746441085219,6.8817,145.31,145.25,24.42]
[1746441085513,6.8819,145.3,145.25,24.42]
[1746441086310,6.8816,145.31,145.25,24.42]
[1746441086911,6.8816,145.31,145.28,6.8825]
[1746441087312,6.8821,145.3,145.28,6.8825]
[1746441087812,6.8816,145.31,145.29,6.8823]
[1746441088117,6.8816,145.31,145.25,24.42]
[1746441089518,6.8816,145.31,145.28,6.8826]
[1746441090716,31.3011,145.32,145.29,6.8822]
[1746441090907,24.42,145.32,145.29,6.8822]
[1746441091108,2.1555,145.34,145.26,7.47949168]
[1746441091307,6.8815,145.31,145.28,6.8826]
[1746441092618,6.8812,145.32,145.29,6.8823]
[1746441094624,6.8815,145.31,145.28,6.8826]
[1746441097822,6.8815,145.31,145.28,6.8827]
[1746441098925,6.8815,145.31,145.29,6.8824]
[1746441099424,6.8812,145.32,145.29,6.8824]
[1746441100224,6.8816,145.31,145.28,6.8826]
[1746441100819,6.8816,145.31,145.29,6.8823]
[1746441102327,6.882,145.3,145.28,6.8826]
[1746441102522,33.89559168,145.35,145.28,6.8826]
[1746441103121,6.8817,145.31,145.28,6.8826]
[1746441105026,6.8815,145.31,145.29,6.882]
[1746441105927,6.8815,145.31,145.28,6.8826]
[1746441106828,6.8815,145.31,145.29,6.8823]
[1746441107730,6.8815,145.31,145.28,6.8826]
[1746441108431,6.8815,145.31,145.29,6.8824]
[1746441108928,6.8815,145.31,145.28,6.8826]
[1746441109229,6.8815,145.31,145.26,7.47949168]
[1746441109828,6.8815,145.31,145.29,6.8823]
[1746441110029,6.882,145.3,145.26,7.47949168]
[1746441110227,24.36,145.31,145.25,25.42]
[1746441110427,24.36,145.31,145.25,1.0]
[1746441110628,6.8836,145.27,145.25,7.8841]
[1746441111226,6.881,145.32,145.28,6.8826]
[1746441111432,38.1197,145.35,145.26,24.36]
[1746441111728,4.2307,145.34,145.26,24.36]
[1746441112131,6.8817,145.31,145.28,6.8826]
[1746441112630,6.8817,145.31,145.26,24.36]
[1746441112831,6.882,145.3,145.26,24.36]
[1746441113331,6.882,145.3,145.25,1.0]
[1746441113332,24.36,145.31,145.25,1.0]
[1746441113831,6.8837,145.27,145.25,1.0]
[1746441114834,6.8838,145.26,145.25,1.0]
[1746441116636,6.8838,145.26,145.19,26.4978]
[1746441116637,31.83949168,145.27,145.19,24.36]
[1746441117036,31.83949168,145.27,145.16,31.83949168]
[1746441117334,6.8857,145.22,145.19,6.8868]
[1746441117635,6.8857,145.22,145.16,31.83949168]
[1746441117934,31.83949168,145.27,145.16,31.83949168]
[1746441118937,6.8853,145.23,145.2,6.8864]
[1746441120639,6.8858,145.22,145.19,6.8869]
[1746441120836,31.83949168,145.27,145.16,24.36]
[1746441121136,6.8875,145.19,145.16,24.38]
[1746441121345,7.47949168,145.21,145.07,24.33198043]
[1746441121537,26.5314,145.2,145.09,33.85699168]
[1746441121840,26.5314,145.2,145.15,6.889]
[1746441122336,6.888,145.18,145.15,6.889]
[1746441122735,26.5314,145.2,145.15,6.889]
[1746441124148,6.8874,145.19,145.15,6.889]
[1746441125041,6.8874,145.19,145.1,7.47949168]
[1746441125941,6.8874,145.19,145.15,6.8887]
[1746441126240,6.8874,145.19,145.1,7.47949168]
[1746441126538,6.8877,145.18,145.15,6.8887]
[1746441127346,6.8882,145.17,145.14,6.8892]
[1746441130351,6.8878,145.18,145.15,6.8889]
[1746441132050,6.8878,145.18,145.16,6.8884]
[1746441133552,6.8874,145.19,145.16,6.8884]
[1746441133744,26.5314,145.2,145.16,6.8884]
[1746441134055,6.8877,145.18,145.15,6.8888]
[1746441135849,6.8877,145.18,145.16,6.8885]
[1746441136158,6.8873,145.19,145.16,6.8885]
[1746441136355,26.5314,145.2,145.16,6.8885]
[1746441136750,6.8878,145.18,145.16,6.8885]
[1746441136957,26.5314,145.2,145.15,6.8888]
[1746441137455,6.888,145.18,145.15,6.8888]
[1746441139160,6.8882,145.17,145.15,6.8888]
[1746441140159,6.8879,145.18,145.15,6.8888]
[1746441144265,6.8879,145.18,145.16,6.8885]
[1746441144868,6.8879,145.18,145.15,6.8888]
[1746441145968,24.38,145.2,145.14,6.8893]
[1746441146470,6.8879,145.18,145.11,24.36]
[1746441146768,6.8879,145.18,145.15,6.8887]
[1746441148377,6.8873,145.19,145.16,6.8885]
[1746441148774,24.38,145.2,145.16,6.8885]
[1746441149375,6.8872,145.19,145.16,6.8885]
[1746441149777,24.38,145.2,145.15,6.8888]
[1746441150176,6.8877,145.18,145.15,6.8888]
[1746441151569,24.38,145.2,145.11,24.36]
[1746441152173,6.8872,145.19,145.16,6.8882]
[1746441152570,24.38,145.2,145.11,25.36]
[1746441152770,6.8878,145.18,145.15,6.889]
[1746441153078,6.8878,145.18,145.11,25.36]
[1746441153377,6.8883,145.17,145.14,6.8893]
[1746441153979,6.8878,145.18,145.15,6.889]
[1746441154581,6.8876,145.19,145.11,25.36]
[1746441154972,24.38,145.2,145.13,7.47949168]
[1746441155172,24.38,145.2,145.14,4.1469]
[1746441155173,31.2669,145.2,145.14,4.1469]
[1746441156177,6.8871,145.19,145.14,4.1469]
[1746441156367,6.8871,145.19,145.16,6.8883]
[1746441156780,6.8871,145.19,145.14,4.1469]
[1746441157379,24.38,145.2,145.15,6.8888]
[1746441157774,24.38,145.2,145.14,4.1469]
[1746441158080,6.8879,145.18,145.16,6.8885]
[1746441158680,6.8879,145.18,145.15,6.8888]
[1746441159281,6.8879,145.18,145.16,6.8885]
[1746441159579,24.36,145.23,145.15,24.36]
[1746441159776,24.36,145.23,145.15,26.4097]
[1746441159977,31.2455,145.23,145.16,7.47949168]
[1746441160281,6.8855,145.23,145.16,7.47949168]
[1746441160882,6.8855,145.23,145.21,6.8859]
[1746441162482,24.36,145.26,145.2,6.8864]
[1746441162783,24.36,145.26,145.16,7.47949168]
[1746441163084,6.8854,145.23,145.21,6.8861]
[1746441163680,6.8859,145.22,145.19,6.8867]
[1746441163886,7.47949168,145.25,145.15,26.4097]
[1746441164073,7.47949168,145.22,145.15,24.36]
[1746441164278,24.36,145.21,145.16,6.8882]
[1746441165085,6.888,145.18,145.15,6.8889]
[1746441165385,24.36,145.21,145.15,6.8889]
[1746441165685,24.36,145.21,145.16,6.8884]
[1746441166085,6.8874,145.19,145.16,6.8884]
[1746441166887,6.8874,145.19,145.17,6.888]
[1746441167080,4.38957151,145.18,145.17,6.888]
[1746441171787,4.41029371,145.18,145.17,6.888]
[1746441173588,4.40959988,145.18,145.17,6.888]
[1746441175091,11.29729988,145.18,145.16,6.8884]
[1746441175287,4.40904399,145.17,145.16,6.8884]
[1746441178092,4.40904399,145.17,145.12,24.36]
[1746441178293,4.40904399,145.16,145.12,24.36]
[1746441178593,6.8883,145.17,145.15,6.889]
[1746441178789,4.40430165,145.16,145.15,6.889]
[1746441178989,4.40430165,145.16,145.12,24.36]
[1746441179189,6.8883,145.17,145.14,6.8892]
[1746441179382,4.40598364,145.16,145.14,6.8892]
[1746441179586,6.8883,145.17,145.14,6.8892]
[1746441179782,4.40596547,145.16,145.15,6.889]
[1746441183197,31.2078,145.18,145.16,6.8884]
[1746441183499,4.4330594,145.17,145.16,6.8884]
[1746441183696,6.8869,145.2,145.12,24.36]
[1746441183888,4.43388522,145.19,145.12,24.36]
[1746441184095,4.43388522,145.18,145.12,24.36]
[1746441184297,4.43388522,145.17,145.12,24.36]
[1746441184497,6.8874,145.19,145.17,6.888]
[1746441184697,4.42304915,145.18,145.12,24.36]
[1746441184898,4.42304915,145.17,145.15,6.8889]
[1746441185098,4.42304915,145.16,145.15,6.8889]
[1746441186503,4.42092997,145.16,145.15,6.8889]
[1746441190702,31.2074,145.19,145.17,6.8879]
[1746441190903,4.41723645,145.18,145.12,38.1409]
[1746441191102,4.41723645,145.17,145.12,38.1409]
[1746441191304,24.32,145.19,145.12,38.1409]
[1746441191704,4.4173241,145.18,145.12,38.1409]
[1746441191899,4.4173241,145.17,145.12,38.1409]
[1746441192098,31.2072,145.19,145.17,6.8877]
[1746441192298,4.41561391,145.18,145.17,6.8877]
[1746441193195,31.206,145.22,145.19,6.8867]
[1746441193397,4.40497523,145.21,145.19,6.8867]
[1746441193699,4.40497523,145.2,145.19,6.8867]
[1746441193895,11.29167523,145.2,145.16,24.32]
[1746441194095,4.40497523,145.19,145.16,24.32]
[1746441194307,4.40497523,145.18,145.16,24.32]
[1746441194508,6.8867,145.2,145.18,6.8874]
[1746441194707,4.38994915,145.19,145.18,6.8874]
[1746441194907,6.8867,145.2,145.17,6.8878]
[1746441195199,4.3898292,145.19,145.17,6.8878]
[1746441195399,4.38980481,145.18,145.17,6.8878]
[1746441197609,6.8867,145.2,145.17,6.8878]
[1746441197809,11.31083198,145.19,145.17,6.8878]
[1746441198004,4.42363198,145.18,145.17,6.8878]
[1746441199512,11.31123198,145.18,145.11,8.47949168]
[1746441199711,4.42489729,145.17,145.12,24.32]
[1746441199912,6.8876,145.18,145.12,24.32]
[1746441200214,4.42056399,145.17,145.15,6.8888]
[1746441200511,6.8876,145.18,145.15,6.8888]
[1746441200712,4.42074376,145.17,145.15,6.8888]
[1746441200911,6.8876,145.18,145.15,6.8888]
[1746441201212,4.42686527,145.17,145.16,6.8886]
[1746441202015,4.42687414,145.17,145.16,6.8886]
[1746441203414,4.4252328,145.17,145.16,6.8886]
[1746441204413,6.8874,145.19,145.16,6.8886]
[1746441204615,4.42560212,145.18,145.16,6.8886]
[1746441204813,4.42574422,145.17,145.16,6.8886]
[1746441205016,24.32,145.22,145.18,6.8872]
[1746441205311,4.42589669,145.21,145.12,24.32]
[1746441205511,4.42589669,145.2,145.12,24.32]
[1746441205711,4.42589669,145.19,145.13,13.78]
[1746441206018,24.32,145.22,145.14,2.0806]
[1746441206215,4.42106714,145.21,145.19,6.8868]
[1746441206415,4.42106714,145.2,145.19,6.8868]
[1746441207016,24.32,145.22,145.19,6.8868]
[1746441207222,11.30861076,145.21,145.19,6.8868]
[1746441207421,4.42241076,145.2,145.19,6.8868]
[1746441210230,7.19433,145.24,145.22,6.8857]
[1746441210428,4.40704579,145.23,145.22,6.8857]
[1746441210628,11.29224579,145.23,145.16,26.4675]
[1746441210823,4.40704579,145.22,145.16,26.4675]
[1746441211028,4.40704579,145.21,145.16,26.4675]
[1746441211227,4.40704579,145.2,145.16,26.4675]
[1746441211425,6.8852,145.23,145.16,26.4675]
[1746441211623,4.40314497,145.22,145.16,26.4675]
[1746441211828,4.40314497,145.21,145.16,26.4675]
[1746441212029,4.40314497,145.2,145.16,26.4675]
[1746441212233,6.8852,145.23,145.16,26.4675]
[1746441212428,4.40239507,145.22,145.16,26.4675]
[1746441212629,4.40239507,145.21,145.16,26.4675]
[1746441212926,6.8852,145.23,145.16,26.4675]
[1746441213122,0.30933,145.24,145.16,26.4675]
[1746441213123,4.40180441,145.22,145.21,6.8859]
[1746441213526,0.30933,145.24,145.2,24.32]
[1746441213726,4.4003236,145.23,145.22,6.8857]
[1746441214333,0.30933,145.24,145.23,6.8852]
[1746441217633,6.8836,145.27,145.25,6.8842]
[1746441217834,4.37880068,145.26,145.16,15.9244]
[1746441218030,4.37880068,145.25,145.17,26.3109]
[1746441218230,4.37880068,145.24,145.2,6.8864]
[1746441218441,6.8858,145.22,145.2,6.8864]
[1746441219133,6.8862,145.21,145.17,24.3]
[1746441219637,6.8859,145.22,145.17,24.3]
[1746441220339,6.8855,145.23,145.2,6.8866]
[1746441220636,4.3751873,145.22,145.2,6.8866]
[1746441220838,31.185,145.24,145.17,24.3]
[1746441221039,4.37531043,145.23,145.17,24.3]
[1746441221237,31.77949168,145.27,145.17,24.3]
[1746441221437,11.2592819,145.26,145.23,6.8848]
[1746441221638,4.3750819,145.25,145.17,24.3]
[1746441221838,6.8842,145.26,145.17,24.3]
[1746441222037,11.25950488,145.25,145.23,6.8849]
[1746441222238,6.8843,145.25,145.23,6.8849]
[1746441222741,4.36630932,145.24,145.23,6.8849]
[1746441223540,6.884,145.26,145.24,6.8847]
[1746441223739,4.36501781,145.25,145.24,6.8847]
[1746441224436,4.36501781,145.25,145.23,6.885]
[1746441224633,4.36473894,145.24,145.17,24.3]
[1746441224837,31.77949168,145.27,145.17,24.3]
[1746441225039,4.36502925,145.26,145.17,24.3]
[1746441225232,4.36502925,145.25,145.17,24.3]
[1746441225437,4.36502925,145.24,145.17,24.3]
[1746441225639,31.77949168,145.27,145.17,24.3]
[1746441225839,4.38297394,145.26,145.17,24.3]
[1746441226034,4.38297394,145.25,145.17,24.3]
[1746441226236,4.38297394,145.24,145.17,24.3]
[1746441226434,6.8845,145.25,145.17,24.3]
[1746441226730,4.38278346,145.24,145.17,24.3]
[1746441226929,4.4092263,145.23,145.21,6.8859]
[1746441227135,6.8851,145.24,145.21,6.8859]
[1746441227337,4.40935712,145.23,145.21,6.8859]
[1746441227539,6.8851,145.24,145.21,6.8859]
[1746441227740,4.40957539,145.23,145.21,6.8859]
[1746441228041,31.77949168,145.27,145.21,6.8859]
[1746441228241,4.41170481,145.26,145.22,6.8856]
[1746441228434,4.41170481,145.25,145.17,24.3]
[1746441228634,11.29690481,145.24,145.17,24.3]
[1746441228835,4.41170481,145.23,145.21,6.8859]
[1746441229039,6.8852,145.24,145.21,6.8859]
[1746441229340,4.39879756,145.23,145.21,6.8859]
[1746441229541,6.8852,145.24,145.21,6.8859]
[1746441229741,4.39879756,145.23,145.21,6.8859]
[1746441229935,6.8852,145.24,145.21,6.8859]
[1746441230135,4.39829282,145.23,145.21,6.8859]
[1746441230340,6.8852,145.24,145.21,6.8859]
[1746441230541,11.28386183,145.23,145.21,6.8859]
[1746441230737,6.8852,145.23,145.21,6.8859]
[1746441232139,31.77949168,145.27,145.17,24.3]
[1746441232340,4.39958983,145.26,145.17,24.3]
[1746441232539,4.39958983,145.25,145.17,24.3]
[1746441232738,31.77949168,145.27,145.17,24.3]
[1746441232739,4.39958983,145.24,145.19,6.8869]
[1746441232940,6.8864,145.21,145.19,6.8869]
[1746441233744,6.8867,145.2,145.18,6.8874]
[1746441234136,24.3,145.23,145.17,24.3]
[1746441234340,4.40082888,145.22,145.17,24.3]
[1746441234540,11.28742888,145.21,145.18,6.8874]
[1746441234741,6.8866,145.21,145.18,6.8874]
[1746441235044,4.41361083,145.2,145.18,6.8874]
[1746441235244,6.8866,145.21,145.18,6.8874]
[1746441235444,11.30178717,145.2,145.18,6.8874]
[1746441235743,6.8867,145.2,145.18,6.8874]
[1746441237346,6.8864,145.21,145.19,6.8871]
[1746441237546,4.3982898,145.2,145.19,6.8871]
[1746441237747,4.39829007,145.2,145.19,6.8871]
[1746441238342,4.39829007,145.2,145.18,6.8874]
[1746441238648,6.8864,145.21,145.18,6.8874]
[1746441238849,4.39812359,145.2,145.18,6.8874]
[1746441239053,6.8864,145.21,145.18,6.8874]
[1746441239349,4.39814841,145.2,145.18,6.8874]
[1746441239548,6.8864,145.21,145.18,6.8874]
[1746441239749,4.39830946,145.2,145.18,6.8874]
[1746441240044,24.3,145.23,145.12,2.0945]
[1746441240045,4.39820914,145.19,145.12,2.0945]
[1746441240348,4.39818382,145.18,145.14,27.3806]
[1746441240556,6.8873,145.19,145.16,6.8882]
[1746441240747,4.40412266,145.18,145.16,6.8882]
[1746441240937,6.8876,145.19,145.16,6.8882]
[1746441241139,4.40396063,145.18,145.16,6.8882]
[1746441241348,6.3075,145.22,145.16,6.8882]
[1746441241545,4.40417544,145.21,145.16,6.8882]
[1746441241743,4.40417544,145.2,145.14,1.0]
[1746441242051,28.70417544,145.19,145.14,1.0]
[1746441242247,6.8888,145.16,145.14,1.0]
[1746441242647,24.3,145.19,145.14,1.0]
[1746441242842,6.8884,145.17,145.14,7.8894]
[1746441243043,4.4001275,145.16,145.14,1.0]
[1746441243349,11.2891275,145.15,145.14,1.0]
[1746441243952,11.29528984,145.15,145.14,1.0]
[1746441244553,6.8901,145.13,145.11,1.0]
[1746441244952,24.3,145.15,145.11,1.0]
[1746441245153,11.29482603,145.14,145.11,1.0]
[1746441245352,6.8897,145.14,145.11,1.0]
[1746441249659,6.89,145.13,145.11,1.0]
[1746441255060,6.8905,145.12,145.11,1.0]
[1746441255264,6.8905,145.12,145.02,914.95949168]
[1746441255265,11.88688592,145.12,145.02,25.32]
[1746441255468,30.86032652,145.11,145.02,25.32]
[1746441255670,7.47949168,145.09,145.03,6.8944]
[1746441257068,6.8926,145.08,145.03,6.8944]
[1746441257570,6.8926,145.08,145.04,6.8941]
[1746441257969,6.8926,145.08,145.02,25.32]
[1746441258269,6.8926,145.08,145.03,6.8945]
[1746441258569,6.8926,145.08,145.02,25.32]
[1746441258768,6.8926,145.08,145.04,6.8941]
[1746441258969,24.32,145.07,145.04,6.8941]
[1746441259469,24.32,145.07,145.05,6.8937]
[1746441260169,24.32,145.07,145.02,1.0]
[1746441260373,31.2129,145.07,145.02,1.0]
[1746441261070,31.2129,145.07,145.04,6.8938]
[1746441261270,6.8936,145.06,145.02,1.0]
[1746441261469,24.32,145.07,145.03,6.8945]
[1746441261971,6.8936,145.06,145.03,6.8945]
[1746441262773,31.2129,145.07,145.02,1.0]
[1746441263472,31.2129,145.07,145.04,6.894]
[1746441268774,6.8935,145.06,145.03,6.8945]
[1746441269077,24.32,145.07,145.02,1.0]
[1746441269377,6.8941,145.05,145.02,7.895]
[1746441270078,6.8947,145.03,145.02,1.0]
[1746441270274,31.2147,145.03,145.02,1.0]
[1746441274074,24.32,145.03,145.02,1.0]
[1746441274782,6.8935,145.06,145.02,1.0]
[1746441275782,6.8935,145.06,145.03,6.8943]
[1746441276382,6.8938,145.05,145.03,6.8943]
[1746441277582,6.8935,145.06,145.03,6.8943]
[1746441279184,31.2331,145.07,145.04,6.8942]
[1746441280484,6.8933,145.06,145.03,6.8945]
[1746441281286,31.233,145.07,145.04,6.8942]
[1746441283289,24.34,145.07,145.02,2.0]
[1746441284189,6.8935,145.06,145.03,6.8947]
[1746441289993,6.8935,145.06,145.02,2.0]
[1746441290594,6.8935,145.06,145.03,6.8945]
[1746441293794,31.2331,145.07,145.04,6.8942]
[1746441293997,24.34,145.07,145.02,2.0]
[1746441294393,6.8935,145.06,145.03,6.8945]
[1746441295487,6.8935,145.06,145.04,6.8942]
[1746441295687,6.8935,145.06,145.02,2.0]
[1746441295995,6.8935,145.06,145.03,6.8944]
[1746441296295,24.34,145.07,145.02,2.0]
[1746441297996,6.8942,145.05,145.02,2.0]
[1746441298400,7.47949168,145.06,145.02,2.0]
[1746441299198,6.8947,145.03,145.02,2.0]
[1746441301001,31.2147,145.03,145.02,2.0]
[1746441309713,36.00990938,145.03,145.02,2.0]
[1746441320612,6.8968,144.99,144.97,2.0556]
[1746441321007,11.69160938,145.0,144.97,6.8975]
[1746441321616,11.69160938,145.0,144.95,24.32]
[1746441321811,4.79520938,145.0,144.95,24.32]
[1746441322117,4.79520938,145.0,144.98,6.8969]
[1746441323817,11.69140938,145.0,144.98,6.8969]
[1746441324116,4.79520938,145.0,144.98,6.8969]
[1746441324707,4.79520938,145.0,144.93,30.5782]
[1746441324911,4.79520938,145.0,144.93,35.37340938]
[1746441325115,4.79520938,145.0,144.93,30.5782]
[1746441325310,4.79520938,144.98,144.93,6.2582]
[1746441325516,4.79520938,144.96,144.93,6.2582]
[1746441325711,4.79520938,144.96,144.93,4.1193]
[1746441325912,4.79520938,144.96,144.94,6.8986]
[1746441326421,6.8988,144.95,144.92,6.8999]
[1746441326719,4.79520938,144.96,144.91,83.33360698]
[1746441326917,6.899,144.95,144.92,6.8999]
[1746441327118,4.79520938,144.94,144.9,100.0]
[1746441327312,11.69460938,144.94,144.91,6.9002]
[1746441327713,11.69460938,144.94,144.9,100.0]
[1746441328012,4.79520938,144.94,144.9,100.0]
[1746441328618,4.79520938,144.94,144.93,6.8995]
[1746441329719,6.8987,144.95,144.93,6.8995]
[1746441330116,6.8987,144.95,144.92,6.8997]
[1746441330613,6.8987,144.95,144.93,6.8994]
[1746441330820,6.8981,144.96,144.9,100.0]
[1746441331022,31.82017715,144.98,144.9,100.0]
[1746441331218,4.37043298,144.97,144.9,100.0]
[1746441331413,31.82017715,144.98,144.9,100.0]
[1746441331613,4.36909778,144.97,144.9,100.0]
[1746441331915,4.36909778,144.96,144.9,100.0]
[1746441332116,6.8988,144.95,144.9,100.0]
[1746441332319,6.8988,144.95,144.92,6.8995]
[1746441332522,6.8988,144.95,144.9,100.0]
[1746441333624,31.82017715,144.98,144.9,100.0]
[1746441334522,6.8976,144.97,144.95,6.8983]
[1746441335123,6.8981,144.96,144.9,100.0]
[1746441335320,31.82017715,144.98,144.9,100.0]
[1746441335521,6.899,144.95,144.92,6.8999]
[1746441336023,31.82017715,144.98,144.9,100.0]
[1746441336224,6.8992,144.94,144.91,6.9002]
[1746441336724,6.8992,144.94,144.9,100.0]
[1746441336923,6.8992,144.94,144.92,6.8997]
[1746441338123,6.8992,144.94,144.91,6.9002]
[1746441338722,6.8992,144.94,144.92,6.8999]
[1746441338924,6.8987,144.95,144.92,6.8999]
[1746441339117,31.82017715,144.98,144.9,100.0]
[1746441339326,7.50017715,144.95,144.9,100.0]
[1746441339517,24.34,144.94,144.9,100.0]
[1746441340119,24.34,144.94,144.9,101.0]
[1746441340120,6.9003,144.92,144.9,101.0]
[1746441341727,24.34,144.94,144.9,101.0]
[1746441342729,31.2393,144.94,144.9,101.0]
[1746441343220,31.2391,144.94,144.9,101.0]
[1746441343928,31.2391,144.94,144.91,6.9003]
[1746441344229,31.2391,144.94,144.9,101.0]
[1746441344425,24.34,144.94,144.92,6.8999]
[1746441345025,31.239,144.94,144.91,6.9002]
[1746441345331,24.34,144.94,144.9,101.0]
[1746441345522,6.9004,144.91,144.9,101.0]
[1746441346530,7.50017715,144.92,144.84,4.0298]
[1746441346730,24.34,144.91,144.84,4.0298]
[1746441347026,6.9024,144.87,144.84,1.9956]
[1746441347226,6.9024,144.87,144.81,26.3073]
[1746441347428,6.9024,144.87,144.84,6.9035]
[1746441347622,24.34,144.91,144.81,26.3073]
[1746441347827,7.50017715,144.89,144.81,26.3073]
[1746441348029,6.9026,144.87,144.81,26.3073]
[1746441348228,7.50017715,144.89,144.8,4.0298]
[1746441348229,24.34,144.86,144.8,4.0298]
[1746441348428,24.34,144.86,144.82,6.9043]
[1746441348627,24.34,144.86,144.8,4.0298]
[1746441348931,31.84017715,144.86,144.77,10.13906014]
[1746441349130,38.74317715,144.86,144.77,12.25016014]
[1746441349330,31.84017715,144.86,144.77,12.25016014]
[1746441349532,31.84017715,144.86,144.83,6.9039]
[1746441349732,31.84017715,144.86,144.77,12.25016014]
[1746441349924,24.34,144.86,144.77,19.75033729]
[1746441350128,24.34,144.86,144.85,6.9033]
[1746441350523,24.34,144.86,144.77,4.1395]
[1746441350728,31.84017715,144.86,144.77,4.1395]
[1746441351135,31.84017715,144.86,144.81,6.905]
[1746441351733,6.9036,144.85,144.81,6.905]
[1746441351937,7.50017715,144.83,144.72,24.54]
[1746441352131,32.04017715,144.83,144.74,1.9737]
[1746441352330,32.04017715,144.83,144.77,6.9068]
[1746441352737,6.9056,144.81,144.77,6.9068]
[1746441352937,32.04017715,144.83,144.77,6.9068]
[1746441353135,32.04017715,144.83,144.76,6.9075]
[1746441353331,6.9059,144.8,144.74,1.9737]
[1746441353837,6.9063,144.79,144.74,1.9737]
[1746441354432,32.04017715,144.83,144.74,1.9737]
[1746441354940,6.9057,144.8,144.77,6.9066]
[1746441355237,24.54,144.79,144.71,2.1447]
[1746441355435,7.50017715,144.8,144.71,2.1447]
[1746441355737,6.9068,144.78,144.71,2.1447]
[1746441355933,24.56,144.79,144.71,2.1447]
[1746441356133,24.56,144.79,144.69,24.56]
[1746441356134,6.9085,144.75,144.69,24.56]
[1746441356342,6.9085,144.75,144.67,4.1216]
[1746441356343,24.56,144.75,144.68,1.9933]
[1746441357332,7.50017715,144.74,144.62,186.65846793]
[1746441357534,7.50017715,144.74,144.63,12.12346014]
[1746441357736,6.9109,144.7,144.66,6.912]
[1746441357937,24.56,144.7,144.66,6.912]
[1746441358340,31.4707,144.7,144.66,6.912]
[1746441358637,31.4707,144.7,144.63,4.0128]
[1746441358835,31.4707,144.7,144.67,6.9119]
[1746441359036,24.56,144.71,144.63,4.0128]
[1746441359231,24.56,144.72,144.64,24.56]
[1746441360242,6.9094,144.73,144.64,24.56]
[1746441360441,31.4694,144.73,144.7,6.9102]
[1746441361137,24.56,144.73,144.65,7.50017715]
[1746441361331,7.50017715,144.76,144.64,24.56]
[1746441361332,24.56,144.76,144.68,7.50017715]
[1746441361534,24.56,144.76,144.69,6.2025]
[1746441362139,24.56,144.76,144.75,6.9081]
[1746441362443,24.56,144.84,144.75,7.50017715]
[1746441362738,32.06017715,144.84,144.76,4.0747]
[1746441362939,7.50017715,144.81,144.69,2.1278]
[1746441363130,6.9079,144.76,144.73,6.9088]
[1746441363538,24.56,144.8,144.7,1.9756]
[1746441363850,24.56,144.8,144.72,24.56]
[1746441364238,6.9069,144.78,144.74,6.9083]
[1746441364643,24.56,144.8,144.74,6.9083]
[1746441365238,6.9072,144.77,144.74,6.9083]
[1746441365546,24.56,144.8,144.72,24.56]
[1746441365744,6.9079,144.76,144.72,24.56]
[1746441366242,6.9079,144.76,144.7,1.9756]
[1746441366944,24.56,144.8,144.7,1.9756]
[1746441367133,24.56,144.79,144.7,1.9756]
[1746441367337,24.56,144.79,144.69,4.2269]
[1746441368045,6.9083,144.75,144.72,6.9092]
[1746441369240,24.56,144.79,144.72,6.9092]
[1746441370344,6.9084,144.75,144.72,6.9092]
[1746441370533,6.9084,144.75,144.69,4.2269]
[1746441370843,6.9081,144.75,144.69,4.2269]